bitfinex/quotes_SOLUSD_20241231
["timestamp","ask_amount","ask_price","bid_price","bid_amount"]
[1735648473204,0.12549,194.68,194.55,1.5638]
[1735648473786,0.25098,194.69,194.56,0.12549]
[1735648473991,23.776884,194.7,194.58,0.12549]
[1735648474201,1.5641,194.71,194.58,10.53818585]
[1735648474401,1.5641,194.71,194.58,16.93418585]
[1735648475016,23.776884,194.7,194.58,16.93418585]
[1735648475610,20.0,194.67,194.58,16.93418585]
[1735648476496,1.5286,194.76,194.61,0.25098]
[1735648476817,20.0,194.7,194.62,0.12549]
[1735648477594,20.0,194.7,194.62,10.28720585]
[1735648478218,1.5286,194.76,194.63,0.25098]
[1735648478596,1.5286,194.81,194.64,10.16171585]
[1735648479094,1.5286,194.81,194.66,7.9804]
[1735648479295,1.5286,194.81,194.67,0.37647]
[1735648479715,20.0,194.75,194.67,0.37647]
[1735648479901,249.31365296,194.78,194.67,0.37647]
[1735648480491,20.0,194.74,194.67,0.37647]
[1735648483117,23.776884,194.73,194.66,7.9804]
[1735648484118,20.0,194.75,194.67,0.37647]
[1735648485429,23.776884,194.74,194.66,7.9804]
[1735648489426,20.0,194.75,194.67,0.37647]
[1735648490103,20.0,194.75,194.68,0.12549]
[1735648491244,20.0,194.75,194.67,0.25098]
[1735648491735,20.0,194.75,194.67,0.37647]
[1735648492446,20.0,194.75,194.68,0.12549]
[1735648492738,93.50073,194.71,194.68,0.12549]
[1735648494638,75.624647,194.71,194.68,0.12549]
[1735648498944,75.624647,194.71,194.66,7.9804]
[1735648499240,75.624647,194.71,194.67,0.37647]
[1735648505028,75.624647,194.71,194.66,1.5844]
[1735648505260,75.624647,194.71,194.62,9.69848788]
[1735648505421,23.776884,194.7,194.62,9.69848788]
[1735648506020,23.776884,194.7,194.63,0.25098]
[1735648507051,23.776884,194.7,194.62,1.6657]
[1735648508563,20.0,194.67,194.59,0.37647]
[1735648508946,20.0,194.67,194.58,1.6657]
[1735648509550,23.776884,194.66,194.59,0.25098]
[1735648509962,23.776884,194.66,194.54,8.03278788]
[1735648510353,23.776884,194.62,194.54,8.03278788]
[1735648510684,23.776884,194.62,194.55,0.25098]
[1735648511058,23.776884,194.62,194.53,1.6657]
[1735648513863,23.776884,194.62,194.54,0.25098]
[1735648514175,23.776884,194.62,194.53,1.6657]
[1735648516777,23.776884,194.58,194.48,1.6657]
[1735648517686,23.776884,194.58,194.49,0.25098]
[1735648517995,23.776884,194.58,194.48,1.6657]
[1735648518882,23.776884,194.58,194.49,0.25098]
[1735648519497,7.725,194.65,194.5,0.12549]
[1735648519682,7.725,194.65,194.52,0.12549]
[1735648520085,23.776884,194.64,194.52,0.12549]
[1735648520289,7.725,194.65,194.54,0.12549]
[1735648520886,20.0,194.62,194.54,0.12549]
[1735648522493,23.776884,194.61,194.51,10.16171585]
[1735648522693,23.776884,194.61,194.5,30.16171585]
[1735648523008,23.776884,194.61,194.51,0.37647]
[1735648524502,23.776884,194.61,194.53,0.25098]
[1735648524910,20.0,194.62,194.54,0.12549]
[1735648527508,23.776884,194.61,194.53,0.25098]
[1735648528512,23.776884,194.61,194.49,10.16171585]
[1735648528887,20.0,194.58,194.48,11.82741585]
[1735648529203,23.776884,194.57,194.48,11.82741585]
[1735648530225,23.776884,194.57,194.49,0.25098]
[1735648530592,23.776884,194.57,194.48,1.6657]
[1735648530891,20.0,194.54,194.48,1.6657]
[1735648531217,23.776884,194.53,194.48,1.6657]
[1735648532711,23.776884,194.53,194.45,10.16171585]
[1735648532906,23.776884,194.53,194.44,1.6147]
[1735648533708,23.776884,194.53,194.44,11.77641585]
[1735648533906,23.776884,194.53,194.44,1.6147]
[1735648534310,23.776884,194.53,194.44,11.77641585]
[1735648535018,23.776884,194.53,194.44,1.6147]
[1735648535394,23.776884,194.53,194.44,11.77641585]
[1735648536213,23.776884,194.53,194.44,1.6147]
[1735648537795,20.0,194.5,194.44,1.6147]
[1735648540405,20.0,194.55,194.45,10.41269585]
[1735648540917,23.776884,194.57,194.45,0.25098]
[1735648541218,23.776884,194.53,194.45,10.41269585]
[1735648541517,23.776884,194.57,194.46,10.16171585]
[1735648541725,24.027864,194.6,194.46,10.16171585]
[1735648542720,20.0,194.57,194.45,10.41269585]
[1735648543116,20.0,194.57,194.45,0.25098]
[1735648543319,20.0,194.53,194.44,1.6147]
[1735648543620,23.776884,194.52,194.44,1.6147]
[1735648545524,23.776884,194.48,194.41,0.09]
[1735648545822,25.357684,194.48,194.41,0.09]
[1735648546627,23.776884,194.44,194.41,0.09]
[1735648547703,43.776884,194.42,194.41,0.09]
[1735648548002,43.776884,194.42,194.33,1.5303]
[1735648548003,23.776884,194.41,194.33,1.5303]
[1735648548400,23.776884,194.37,194.28,8.03278788]
[1735648548623,20.0,194.46,194.28,9.59518788]
[1735648548803,20.0,194.38,194.28,9.59518788]
[1735648548998,23.776884,194.33,194.28,9.59518788]
[1735648549403,20.0,194.34,194.28,1.5624]
[1735648550029,20.0,194.38,194.28,1.5624]
[1735648551726,20.0,194.34,194.28,1.5624]
[1735648551925,20.0,194.34,194.23,21.95320662]
[1735648552109,20.0,194.34,194.23,23.60850662]
[1735648552430,20.0,194.34,194.24,0.25098]
[1735648553118,20.0,194.34,194.26,16.18448662]
[1735648553337,0.12549,194.39,194.26,15.93350662]
[1735648553629,20.0,194.36,194.26,0.25098]
[1735648553812,20.0,194.36,194.26,16.18448662]
[1735648554012,20.0,194.36,194.28,0.25098]
[1735648554213,20.0,194.38,194.29,16.18448662]
[1735648554639,20.0,194.38,194.29,0.25098]
[1735648554845,20.0,194.38,194.28,0.37647]
[1735648555044,20.0,194.39,194.3,0.25098]
[1735648555339,20.0,194.39,194.31,1.6553]
[1735648555527,1.5699,194.45,194.32,6.27068]
[1735648555837,20.0,194.43,194.32,6.0197]
[1735648556338,23.776884,194.44,194.32,6.0197]
[1735648556953,20.0,194.41,194.32,6.0197]
[1735648558010,20.0,194.41,194.31,1.6553]
[1735648558011,20.0,194.37,194.31,1.6553]
[1735648559244,1.5699,194.45,194.31,1.6553]
[1735648559539,20.0,194.43,194.31,1.6553]
[1735648560939,20.0,194.39,194.31,1.6553]
[1735648563337,23.776884,194.38,194.27,6.0197]
[1735648563657,20.0,194.35,194.27,6.0197]
[1735648566725,20.0,194.31,194.26,1.6553]
[1735648567643,20.0,194.31,194.22,6.4603]
[1735648567943,20.0,194.27,194.21,1.6555]
[1735648568631,20.0,194.27,194.17,6.3267]
[1735648568832,20.0,194.23,194.17,6.3267]
[1735648569861,20.0,194.23,194.16,1.6555]
[1735648570038,23.776884,194.22,194.12,6.3267]
[1735648571158,20.0,194.19,194.11,1.636]
[1735648571774,23.776884,194.18,194.11,1.636]
[1735648573357,20.0,194.15,194.08,6.3267]
[1735648573734,7.9279,194.28,194.09,16.18448662]
[1735648574357,20.0,194.21,194.1,15.93350662]
[1735648574856,7.9279,194.28,194.12,0.25098]
[1735648575052,20.0,194.25,194.13,16.05899662]
[1735648575256,7.9279,194.28,194.15,0.12549]
[1735648575560,20.0,194.24,194.15,16.05899662]
[1735648575758,23.902374,194.27,194.15,16.05899662]
[1735648575956,7.9279,194.33,194.15,16.05899662]
[1735648576136,7.9279,194.33,194.18,6.3267]
[1735648576345,7.9279,194.33,194.19,0.12549]
[1735648576542,7.9279,194.33,194.19,16.05899662]
[1735648576741,7.9279,194.33,194.2,15.93350662]
[1735648576944,6.3259,194.37,194.2,15.93350662]
[1735648577261,43.902374,194.33,194.2,15.93350662]
[1735648577756,20.0,194.34,194.21,0.12549]
[1735648577943,20.0,194.34,194.22,1.636]
[1735648578145,6.3259,194.37,194.22,17.56950662]
[1735648578444,6.3259,194.37,194.23,0.12549]
[1735648578760,1.602,194.38,194.23,0.12549]
[1735648578943,20.0,194.34,194.23,0.12549]
[1735648580744,20.0,194.34,194.25,0.12549]
[1735648581134,20.0,194.39,194.25,0.12549]
[1735648581338,20.0,194.39,194.26,6.3263]
[1735648581761,23.776884,194.34,194.26,6.3263]
[1735648581944,7.9476,194.42,194.28,15.93350662]
[1735648582144,8.1608,194.47,194.29,0.12549]
[1735648582368,20.0,194.44,194.3,1.584]
[1735648582940,20.0,194.44,194.31,0.12549]
[1735648583368,24.153354,194.46,194.31,0.12549]
[1735648583545,8.1608,194.47,194.31,0.12549]
[1735648584047,0.12549,194.46,194.31,16.05899662]
[1735648584249,8.1608,194.47,194.32,16.05899662]
[1735648584461,8.1608,194.53,194.33,0.12549]
[1735648584642,24.153354,194.52,194.33,0.12549]
[1735648584847,8.1608,194.53,194.33,0.12549]
[1735648585147,0.25098,194.49,194.33,15.93350662]
[1735648585346,8.1608,194.53,194.35,0.25098]
[1735648585544,20.0,194.5,194.35,16.18448662]
[1735648586064,20.0,194.46,194.35,0.25098]
[1735648586466,0.12549,194.48,194.35,0.25098]
[1735648586667,0.12549,194.48,194.35,16.18448662]
[1735648587165,0.12549,194.49,194.35,16.18448662]
[1735648587367,23.902374,194.49,194.35,0.25098]
[1735648589365,23.902374,194.49,194.35,16.18448662]
[1735648589547,23.902374,194.49,194.35,0.25098]
[1735648589748,23.902374,194.49,194.35,0.12549]
[1735648590664,0.25098,194.48,194.34,6.3263]
[1735648591876,20.25098,194.48,194.34,6.3263]
[1735648593275,0.12549,194.43,194.34,6.3263]
[1735648594982,20.0,194.44,194.34,6.3263]
[1735648596051,25.51550316,194.64,194.35,0.25098]
[1735648596254,215.3,194.66,194.36,1.6536]
[1735648597283,20.12549,194.47,194.36,1.6536]
[1735648599078,0.12549,194.45,194.36,1.6536]
[1735648599679,0.12549,194.45,194.34,6.3263]
[1735648601467,20.0,194.47,194.34,6.3263]
[1735648601669,23.776884,194.5,194.34,6.3263]
[1735648601872,20.0,194.47,194.35,1.6602]
[1735648602470,20.0,194.48,194.35,1.6602]
[1735648602986,81.6,194.59,194.35,1.6602]
[1735648602987,0.12549,194.47,194.35,1.6602]
[1735648603589,0.12549,194.47,194.36,0.12549]
[1735648603962,0.12549,194.49,194.36,0.12549]
[1735648604162,23.776884,194.48,194.36,0.12549]
[1735648604361,20.0,194.45,194.36,0.12549]
[1735648606591,20.0,194.45,194.35,1.6602]
[1735648615593,20.0,194.45,194.36,0.12549]
[1735648616296,81.6,194.54,194.37,1.6038]
[1735648616476,81.6,194.54,194.38,0.12549]
[1735648616678,81.6,194.54,194.39,6.1212]
[1735648618097,20.12549,194.5,194.39,6.1212]
[1735648621080,20.0,194.5,194.41,0.12549]
[1735648621381,81.6,194.54,194.41,0.25098]
[1735648621995,81.6,194.54,194.43,0.12549]
[1735648622599,20.0,194.51,194.44,6.1212]
[1735648622779,1.6333,194.62,194.45,0.12549]
[1735648623175,0.12549,194.56,194.45,0.12549]
[1735648623381,20.0,194.54,194.45,0.12549]
[1735648623582,0.12549,194.56,194.46,1.6038]
[1735648623778,1.6333,194.62,194.47,0.12549]
[1735648624409,20.0,194.56,194.47,0.12549]
[1735648624710,0.12549,194.58,194.47,0.12549]
[1735648626202,20.0,194.58,194.47,0.12549]
[1735648626501,20.0,194.58,194.47,0.25098]
[1735648626902,20.0,194.65,194.49,0.12549]
[1735648627291,1.6276,194.67,194.49,0.25098]
[1735648627788,0.37647,194.65,194.49,0.25098]
[1735648627987,20.0,194.59,194.49,0.25098]
[1735648628194,0.12549,194.62,194.49,0.25098]
[1735648628392,0.12549,194.62,194.51,0.12549]
[1735648628600,1.6276,194.67,194.51,0.25098]
[1735648628911,24.153354,194.66,194.51,0.25098]
[1735648629204,20.0,194.63,194.53,0.25098]
[1735648629512,20.0,194.63,194.54,1.5322]
[1735648629686,44.153354,194.68,194.54,1.5322]
[1735648638318,0.37647,194.66,194.54,1.5322]
[1735648639121,20.25098,194.58,194.49,1.6504]
[1735648639329,0.12549,194.53,194.49,1.6504]
[1735648639504,20.0,194.5,194.49,1.6504]
[1735648639705,0.12549,194.49,194.42,6.0107]
[1735648640407,20.0,194.46,194.42,6.0107]
[1735648642316,1.6446,194.58,194.42,6.0107]
[1735648642317,21.6446,194.58,194.42,6.0107]
[1735648642818,0.12549,194.49,194.43,1.6504]
[1735648643822,20.0,194.54,194.43,1.6504]
[1735648644130,0.12549,194.49,194.43,1.6504]
[1735648645325,20.0,194.5,194.43,1.6504]
[1735648645503,1.6446,194.58,194.43,1.6504]
[1735648646297,43.902374,194.53,194.43,1.6504]
[1735648646504,20.12549,194.53,194.43,1.6504]
[1735648646998,43.902374,194.53,194.43,1.6504]
[1735648648121,0.12549,194.51,194.43,1.6504]
[1735648654807,0.12549,194.44,194.33,8.0808]
[1735648655008,20.0,194.42,194.33,8.0808]
[1735648655847,23.902374,194.41,194.33,8.0808]
[1735648656024,20.0,194.38,194.33,8.0808]
[1735648660335,0.12549,194.37,194.33,8.0808]
[1735648660540,23.902374,194.37,194.28,8.0808]
[1735648660727,20.0,194.34,194.28,8.0808]
[1735648662731,81.6,194.4,194.28,8.0808]
[1735648663037,23.776884,194.35,194.28,8.0808]
[1735648663422,0.12549,194.36,194.28,8.0808]
[1735648663625,20.0,194.37,194.28,8.0808]
[1735648664727,81.6,194.43,194.29,0.12549]
[1735648664929,81.6,194.43,194.29,0.25098]
[1735648665849,20.0,194.39,194.29,0.25098]
[1735648667156,20.0,194.39,194.29,0.12549]
[1735648667943,20.0,194.39,194.29,0.25098]
[1735648668257,20.0,194.39,194.28,8.0808]
[1735648668452,0.12549,194.38,194.28,8.0808]
[1735648673070,20.0,194.35,194.28,8.0808]
[1735648673773,20.0,194.36,194.28,8.0808]
[1735648674271,43.902374,194.39,194.28,8.0808]
[1735648678962,20.0,194.4,194.29,0.25098]
[1735648679139,81.6,194.43,194.29,0.25098]
[1735648679669,20.0,194.39,194.29,0.25098]
[1735648679865,20.0,194.35,194.28,8.0808]
[1735648681966,20.0,194.39,194.29,0.12549]
[1735648682274,20.608916,194.42,194.29,0.25098]
[1735648682475,20.0,194.39,194.29,0.25098]
[1735648682678,23.902374,194.42,194.29,0.25098]
[1735648682975,20.0,194.4,194.29,0.25098]
[1735648683275,20.25098,194.45,194.29,0.25098]
[1735648683468,0.12549,194.42,194.29,0.25098]
[1735648683649,20.0,194.43,194.29,34.22428812]
[1735648683849,20.0,194.43,194.31,0.25098]
[1735648684563,20.0,194.45,194.31,0.25098]
[1735648685369,20.0,194.43,194.31,0.25098]
[1735648685571,81.6,194.48,194.33,0.25098]
[1735648685780,2.11865091,194.49,194.35,0.12549]
[1735648685959,20.0,194.5,194.35,0.12549]
[1735648686265,20.0,194.49,194.35,0.12549]
[1735648686758,20.0,194.45,194.35,0.12549]
[1735648687074,23.902374,194.44,194.34,1.5528]
[1735648688370,3.66310139,194.51,194.35,0.12549]
[1735648688582,20.0,194.49,194.35,0.12549]
[1735648691082,23.902374,194.48,194.35,0.12549]
[1735648691457,20.0,194.45,194.35,0.12549]
[1735648692378,20.0,194.41,194.34,1.5528]
[1735648697156,20.0,194.37,194.34,1.5528]
[1735648698282,20.0,194.37,194.32,6.0046]
[1735648698782,20.0,194.37,194.29,1.5528]
[1735648699171,20.0,194.33,194.29,1.5528]
[1735648701684,20.0,194.33,194.27,6.0046]
[1735648704095,20.0,194.33,194.24,1.663]
[1735648705194,20.0,194.29,194.24,1.663]
[1735648705692,20.0,194.29,194.22,6.5246]
[1735648706690,23.902374,194.28,194.22,6.5246]
[1735648706984,23.902374,194.28,194.2,1.663]
[1735648707372,81.6,194.34,194.2,1.663]
[1735648707877,43.902374,194.3,194.2,1.663]
[1735648709800,20.0,194.31,194.21,0.12549]
[1735648710892,20.0,194.31,194.2,1.663]
[1735648710893,23.902374,194.3,194.2,1.663]
[1735648717911,20.0,194.27,194.2,1.663]
[1735648722493,2.11020647,194.31,194.2,21.663]
[1735648722701,1.6031,194.39,194.25,1.6576]
[1735648722997,1.6031,194.39,194.26,0.12549]
[1735648723419,20.0,194.35,194.26,0.12549]
[1735648724207,3.69691932,194.39,194.26,0.12549]
[1735648725022,20.0,194.35,194.26,0.12549]
[1735648725408,20.0,194.35,194.27,6.4448]
[1735648726108,21.6031,194.43,194.28,0.12549]
[1735648726625,20.0,194.39,194.28,0.12549]
[1735648727742,2.08850046,194.43,194.3,0.12549]
[1735648728032,20.0,194.43,194.3,0.25098]
[1735648729151,23.902374,194.42,194.3,0.25098]
[1735648729472,20.0,194.39,194.3,0.25098]
[1735648732724,89.97279438,194.46,194.3,0.25098]
[1735648732927,20.0,194.43,194.3,0.25098]
[1735648733774,20.0,194.43,194.3,10.44740412]
[1735648735161,20.0,194.43,194.3,0.25098]
[1735648737365,20.0,194.43,194.3,10.44740412]
[1735648740848,11.720624,194.58,194.29,1.5242]
[1735648740849,81.6,194.5,194.34,10.44740412]
[1735648741051,1.6231,194.52,194.38,0.25098]
[1735648741251,20.0,194.51,194.39,6.081]
[1735648741657,1.6231,194.52,194.39,16.27742412]
[1735648741968,23.902374,194.51,194.39,6.081]
[1735648742171,20.0,194.48,194.39,6.081]
[1735648742363,81.6,194.54,194.4,1.5744]
[1735648742749,20.0,194.51,194.41,0.12549]
[1735648742954,81.6,194.54,194.41,0.12549]
[1735648743366,20.0,194.51,194.41,0.12549]
[1735648743548,20.0,194.5,194.41,0.12549]
[1735648744493,20.0,194.5,194.41,10.32191412]
[1735648745293,20.0,194.5,194.41,0.12549]
[1735648745790,20.0,194.5,194.41,10.32191412]
[1735648746682,20.0,194.5,194.41,0.12549]
[1735648746884,20.0,194.5,194.41,10.32191412]
[1735648748275,20.0,194.5,194.42,10.19642412]
[1735648748778,20.0,194.5,194.41,0.12549]
[1735648749374,81.6,194.54,194.41,24.153354]
[1735648749577,20.0,194.51,194.41,0.25098]
[1735648749754,20.0,194.5,194.41,0.25098]
[1735648751080,20.0,194.51,194.41,34.34977812]
[1735648752383,43.902374,194.55,194.41,24.153354]
[1735648752677,43.902374,194.55,194.41,34.34977812]
[1735648753056,43.902374,194.55,194.41,24.153354]
[1735648753256,0.25098,194.54,194.4,1.5744]
[1735648753457,0.12549,194.53,194.4,1.5744]
[1735648759978,24.027864,194.48,194.36,1.666]
[1735648760187,23.902374,194.44,194.36,1.666]
[1735648760483,20.0,194.41,194.36,1.666]
[1735648763389,20.0,194.41,194.32,1.79149]
[1735648764088,99.9,194.4,194.32,1.79149]
[1735648764960,99.9,194.4,194.33,0.12549]
[1735648765168,99.9,194.4,194.32,1.79149]
[1735648767792,99.9,194.4,194.32,1.666]
[1735648769971,20.0,194.37,194.32,1.666]
[1735648773072,99.9,194.4,194.32,1.666]
[1735648775289,20.0,194.37,194.32,1.666]
[1735648780675,99.9,194.4,194.32,1.666]
[1735648786716,20.0,194.37,194.32,1.666]
[1735648786904,20.0,194.37,194.27,1.5672]
[1735648787503,20.0,194.33,194.27,1.5672]
[1735648792598,20.0,194.33,194.22,0.25098]
[1735648795615,20.0,194.33,194.22,0.12549]
[1735648796312,23.902374,194.32,194.21,7.8812]
[1735648796491,20.0,194.29,194.21,7.8812]
[1735648797409,20.0,194.29,194.21,1.5649]
[1735648800818,1.5901,194.36,194.24,0.25098]
[1735648801007,181.5,194.4,194.24,10.44740412]
[1735648801213,20.0,194.37,194.24,10.44740412]
[1735648801524,43.902374,194.36,194.24,10.44740412]
[1735648801816,43.902374,194.36,194.24,0.25098]
[1735648803920,43.902374,194.36,194.23,6.0995]
[1735648804117,0.12549,194.33,194.21,1.5649]
[1735648804323,23.902374,194.31,194.21,1.5649]
[1735648804534,20.0,194.28,194.21,1.5649]
[1735648805622,20.0,194.3,194.21,1.5649]
[1735648809243,20.0,194.32,194.22,23.902374]
[1735648809602,83.1078,194.39,194.23,10.32191412]
[1735648809827,83.1078,194.39,194.25,6.6153]
[1735648810333,83.1078,194.39,194.26,23.902374]
[1735648810541,20.0,194.36,194.26,23.902374]
[1735648812909,20.0,194.36,194.25,6.6153]
[1735648813620,0.12549,194.35,194.25,6.6153]
[1735648813830,0.12549,194.31,194.21,1.5649]
[1735648816629,20.0,194.32,194.21,1.5649]
[1735648818121,2.10834244,194.35,194.22,23.902374]
[1735648818311,20.0,194.36,194.22,23.902374]
[1735648818512,20.0,194.36,194.23,0.12549]
[1735648818713,20.0,194.37,194.23,0.12549]
[1735648818914,0.12549,194.36,194.23,0.12549]
[1735648821516,0.12549,194.36,194.22,23.902374]
[1735648823319,0.12549,194.34,194.22,23.902374]
[1735648826939,22.19035475,194.34,194.22,23.902374]
[1735648828335,0.12549,194.33,194.21,1.5649]
[1735648828643,20.0,194.3,194.21,1.5649]
[1735648831943,2.06486475,194.34,194.21,1.5649]
[1735648832241,20.0,194.35,194.21,1.5649]
[1735648832847,0.25098,194.34,194.21,1.5649]
[1735648834844,0.12549,194.34,194.22,23.902374]
[1735648838662,0.12549,194.3,194.21,1.5649]
[1735648839547,20.0,194.31,194.21,1.5649]
[1735648839724,20.0,194.35,194.21,1.5649]
[1735648840347,0.25098,194.34,194.21,1.5649]
[1735648840735,0.12549,194.34,194.22,23.902374]
[1735648842527,0.12549,194.3,194.21,1.5649]
[1735648842831,44.153354,194.3,194.21,1.5649]
[1735648843042,0.12549,194.29,194.2,8.06012705]
[1735648844050,0.12549,194.29,194.16,1.5322]
[1735648845348,0.12549,194.28,194.16,1.5322]
[1735648849624,0.25098,194.28,194.16,1.5322]
[1735648853948,20.25098,194.28,194.16,1.5322]
[1735648854146,20.12549,194.28,194.16,1.5322]
[1735648854952,0.12549,194.27,194.16,1.5322]
[1735648859143,20.0,194.28,194.17,23.902374]
[1735648860673,2.03365421,194.29,194.18,0.12549]
[1735648860840,2.03365421,194.29,194.19,1.6664]
[1735648860841,0.12549,194.28,194.19,1.6664]
[1735648861041,0.12549,194.25,194.19,1.6664]
[1735648861266,0.25098,194.25,194.19,1.6664]
[1735648861446,0.12549,194.25,194.13,1.6664]
[1735648861754,24.153354,194.25,194.13,1.6664]
[1735648861957,0.25098,194.21,194.13,1.6664]
[1735648862241,0.12549,194.21,194.13,1.6664]
[1735648862864,20.0,194.22,194.13,1.6664]
[1735648863162,0.12549,194.21,194.13,1.6664]
[1735648864666,0.25098,194.21,194.13,1.6664]
[1735648870565,1.5486,194.26,194.13,1.6664]
[1735648871270,20.0,194.2,194.13,1.6664]
[1735648871464,0.12549,194.25,194.13,1.6664]
[1735648871670,0.12549,194.21,194.13,1.6664]
[1735648873848,24.027864,194.21,194.13,1.6664]
[1735648874049,20.0,194.18,194.13,1.6664]
[1735648874548,0.12549,194.17,194.1,6.5951]
[1735648879303,20.0,194.18,194.1,6.5951]
[1735648879893,0.12549,194.17,194.1,6.5951]
[1735648880188,0.12549,194.17,194.08,1.6524]
[1735648884371,20.12549,194.17,194.08,1.6524]
[1735648884765,20.0,194.17,194.08,1.6524]
[1735648884977,87.76,194.27,194.09,0.25098]
[1735648885286,10.196424,194.24,194.1,6.0181]
[1735648885589,87.76,194.27,194.1,6.0181]
[1735648885889,108.384527,194.27,194.11,0.12549]
[1735648886976,24.153354,194.25,194.11,0.12549]
[1735648887868,20.0,194.22,194.11,0.12549]
[1735648889086,20.0,194.22,194.1,6.0181]
[1735648889087,0.12549,194.21,194.1,6.0181]
[1735648889592,20.0,194.18,194.1,6.0181]
[1735648897105,0.12549,194.25,194.1,6.0181]
[1735648897296,20.0,194.24,194.1,6.0181]
[1735648897494,20.0,194.24,194.11,0.12549]
[1735648897888,0.12549,194.23,194.11,0.12549]
[1735648902579,20.0,194.2,194.1,6.0181]
[1735648903297,0.12549,194.19,194.1,6.0181]
[1735648904679,20.0,194.16,194.1,6.0181]
[1735648905903,20.0,194.24,194.1,6.0181]
[1735648906291,0.12549,194.19,194.1,6.0181]
[1735648909493,20.0,194.16,194.1,6.0181]
[1735648909711,20.0,194.16,194.08,1.6524]
[1735648916799,20.0,194.16,194.08,1.36627397]
[1735648916997,0.12549,194.15,194.08,1.36627397]
[1735648921901,20.0,194.16,194.08,1.36627397]
[1735648922297,0.12549,194.15,194.08,1.36627397]
[1735648922692,0.12549,194.15,194.06,6.6257]
[1735648924618,20.0,194.16,194.06,6.6257]
[1735648924619,1.6547,194.19,194.06,6.6257]
[1735648925105,20.0,194.17,194.06,6.6257]
[1735648927522,20.0,194.17,194.07,0.12549]
[1735648930635,20.0,194.17,194.07,24.027864]
[1735648930928,6.4868,194.2,194.07,24.027864]
[1735648930929,24.153354,194.25,194.09,0.12549]
[1735648931135,7.9223,194.26,194.12,0.12549]
[1735648931333,8.09612695,194.27,194.12,0.12549]
[1735648931923,20.0,194.24,194.12,0.12549]
[1735648932737,0.12549,194.26,194.12,0.12549]
[1735648936037,20.0,194.23,194.11,24.027864]
[1735648937033,0.12549,194.22,194.11,0.12549]
[1735648937244,20.0,194.19,194.1,7.7494]
[1735648939729,0.12549,194.18,194.1,7.7494]
[1735648941034,0.12549,194.18,194.1,1.6631]
[1735648944339,8.09612695,194.28,194.11,24.027864]
[1735648944536,8.09612695,194.28,194.13,0.12549]
[1735648944849,20.0,194.25,194.13,24.027864]
[1735648945349,24.027864,194.27,194.13,24.027864]
[1735648945734,20.0,194.27,194.13,24.027864]
[1735648945947,0.37647,194.26,194.12,6.0039]
[1735648946252,0.25098,194.24,194.12,6.0039]
[1735648947248,24.027864,194.25,194.12,6.0039]
[1735648948537,0.12549,194.24,194.12,6.0039]
[1735648949229,0.12549,194.28,194.12,6.0039]
[1735648949552,24.153354,194.25,194.12,6.0039]
[1735648953666,20.0,194.22,194.12,6.0039]
[1735648953838,20.0,194.18,194.12,6.0039]
[1735648959708,20.0,194.14,194.05,1.6191]
[1735648959857,20.0,194.1,194.05,1.6191]
[1735648960258,24.153354,194.21,194.05,1.6191]